[Event "World Junior U20 Girls 2018"]
[Site "Gebze"]
[Date "2018.09.06"]
[Round "2"]
[White "Auvray, Honorine"]
[Black "Ghukasyan, Siranush"]
[Result "0-1"]
[ECO "D02"]
[WhiteElo "2050"]
[BlackElo "2205"]
[Annotator "NA"]
[PlyCount "124"]
[EventDate "2018.09.05"]
[EventType "swiss"]
[EventCountry "TUR"]
[SourceTitle "playchess.com"]
[Source "ChessBase"]
[SourceQuality "1"]
[TimeControl "40/5400+30:1800+30"]

1. d4 {[%emt 0:00:30]} d5 {[%emt 0:00:30]} 2. Bf4 {[%emt 0:00:00]} Nf6 {[%emt 0:00:30]} 3. e3 {[%emt 0:00:00]} e6 {[%emt 0:00:30]} 4. Nd2 {[%emt 0:00:30]} c5 {[%emt 0:00:30]} 5. c3 {[%emt 0:00:30]} Nc6 {[%emt 0:00:30]} 6. Ngf3 {[%emt 0:00:30]} Bd6 {[%emt 0:00:00]} 7. Bg3 {[%emt 0:00:30]} O-O {[%emt 0:02:00]} 8. Bd3 {[%emt 0:00:30]} b6 {[%emt 0:00:30]} 9. Qe2 {[%emt 0:00:30]} Bb7 {[%emt 0:00:00]} 10. Rd1 {[%emt 0:02:30]} Re8 {[%emt 0:05:00]} 11. e4 {[%emt 0:00:30]} Be7 {[%emt 0:00:30]} 12. e5 {[%emt 0:01:30]} Nh5 {[%emt 0:00:30]} 13. a3 {[%emt 0:00:00]} c4 {[%emt 0:06:30]} 14. Bb1 {[%emt 0:00:00]} g6 {[%emt 0:03:30]} 15. Nf1 {[%emt 0:03:30]} b5 {[%emt 0:06:30]} 16. Ne3 {[%emt 0:04:30]} a5 {[%emt 0:01:30]} 17. Ng4 {[%emt 0:07:30]} b4 {[%emt 0:05:30]} 18. Qe3 {[%emt 0:12:30]} bxc3 {[%emt 0:01:30]} 19. bxc3 {[%emt 0:06:30]} a4 {[%emt 0:06:30]} 20. Bf4 {[%emt 0:07:30]} Bc8 {[%emt 0:26:30]} 21. Nh6+ {[%emt 0:02:30]} Kg7 {[%emt 0:01:30]} 22. g4 {[%emt 0:01:30]} Nxf4 {[%emt 0:00:30]} 23. Qxf4 {[%emt 0:00:30]} Rf8 {[%emt 0:06:30]} 24. g5 {[%emt 0:03:30]} Bxa3 {[%emt 0:05:30]} 25. Qh4 {[%emt 0:23:30]} Be7 {[%emt 0:02:10]} 26. Ng4 {[%emt 0:08:48]} Rh8 {[%emt 0:01:26]} 27. Nf6 {[%emt 0:03:52]} h5 {[%emt 0:01:27]} 28. Qf4 {[%emt 0:03:22]} a3 {[%emt 0:00:23]} 29. Ba2 {[%emt 0:01:07]} Rb8 {[%emt 0:01:26]} 30. O-O {[%emt 0:01:53]} Qa5 {[%emt 0:01:21]} 31. Qe3 {[%emt 0:00:44]} Qc7 {[%emt 0:07:52]} 32. Nh4 {[%emt 0:03:17]} Ba6 {[%emt 0:01:57]} 33. Rd2 {[%emt 0:00:43]} Bb5 {[%emt 0:00:48]} 34. Ng2 {[%emt 0:00:39]} Ba4 {[%emt 0:01:36]} 35. Nf4 {[%emt 0:00:30]} Qa5 {[%emt 0:02:17]} 36. Qf3 {[%emt 0:00:39]} Rb7 {[%emt 0:01:34]} 37. Kh1 {[%emt 0:00:43]} Na7 {[%emt 0:00:38]} 38. Bb1 {[%emt 0:00:30]} Rhb8 {[%emt 0:00:31]} 39. N6xh5+ {[%emt 0:00:36]} gxh5 {[%emt 0:00:29]} 40. Nxh5+ {[%emt 0:00:00]} Kf8 {[%emt 0:00:00]} 41. g6 {[%emt 0:02:37]} Bg5 {[%emt 0:02:35]} 42. g7+ {[%emt 0:00:30]} Ke7 {[%emt 0:02:30]} 43. Bh7 {[%emt 0:01:30]} Bxd2 {[%emt 0:07:30]} 44. Qf6+ {[%emt 0:01:30]} Kd7 {[%emt 0:00:30]} 45. Qxf7+ {[%emt 0:01:30]} Kc6 {[%emt 0:00:00]} 46. Qxe6+ {[%emt 0:00:30]} Kb5 {[%emt 0:00:00]} 47. Bg6 {[%emt 0:08:42]} Qd8 {[%emt 0:10:46]} 48. Rb1+ {[%emt 0:01:36]} Bb3 {[%emt 0:00:22]} 49. Rxb3+ {[%emt 0:02:05]} cxb3 {[%emt 0:00:14]} 50. g8=Q {[%emt 0:00:47]} Rb6 {[%emt 0:05:34]} 51. Bd3+ {[%emt 0:03:29]} Ka5 {[%emt 0:00:04]} 52. Qxd5+ {[%emt 0:03:44]} Qxd5+ {[%emt 0:00:30]} 53. Qxd5+ {[%emt 0:00:00]} Rb5 {[%emt 0:00:37]} 54. Qd7 {[%emt 0:02:19]} R8b7 {[%emt 0:01:46]} 55. Qd8+ {[%emt 0:00:12]} Ka4 {[%emt 0:01:00]} 56. Bxb5+ {[%emt 0:01:57]} Rxb5 {[%emt 0:01:26]} 57. Qd7 {[%emt 0:01:38]} a2 {[%emt 0:01:11]} 58. Qxa7+ {[%emt 0:01:26]} Ra5 {[%emt 0:00:05]} 59. Qd7+ {[%emt 0:01:29]} Ka3 {[%emt 0:00:06]} 60. Qd6+ {[%emt 0:00:59]} Kb2 {[%emt 0:00:06]} 61. e6 {[%emt 0:00:51]} a1=Q+ {[%emt 0:00:07]} 62. Kg2 {[%emt 0:00:00]} Rxh5 {[%emt 0:00:07]} 0-1

[Event "World Junior U20 Girls 2018"]
[Site "Gebze"]
[Date "2018.09.06"]
[Round "2"]
[White "Gomez Barrera, Javiera Belen"]
[Black "Hilario, Aleyla"]
[Result "0-1"]
[ECO "C86"]
[WhiteElo "2035"]
[BlackElo "2203"]
[Annotator "NA"]
[PlyCount "54"]
[EventDate "2018.09.05"]
[EventType "swiss"]
[EventCountry "TUR"]
[SourceTitle "playchess.com"]
[Source "ChessBase"]
[SourceQuality "1"]
[TimeControl "40/5400+30:1800+30"]

1. e4 {[%emt 0:00:30]} e5 {[%emt 0:00:30]} 2. Nf3 {[%emt 0:00:30]} Nc6 {[%emt 0:00:30]} 3. Bb5 {[%emt 0:00:00]} a6 {[%emt 0:00:00]} 4. Ba4 {[%emt 0:00:00]} Nf6 {[%emt 0:00:00]} 5. Qe2 {[%emt 0:00:00]} b5 {[%emt 0:00:00]} 6. Bb3 {[%emt 0:00:00]} Be7 {[%emt 0:00:00]} 7. c3 {[%emt 0:01:30]} O-O {[%emt 0:00:00]} 8. O-O {[%emt 0:02:30]} d5 {[%emt 0:00:00]} 9. d3 {[%emt 0:01:30]} Re8 $11 {[%emt 0:02:30]} 10. Rd1 {[%emt 0:07:30]} d4 {[%emt 0:09:30]} 11. Nbd2 {[%emt 0:07:30]} Bc5 {[%emt 0:00:30]} 12. Nf1 {[%emt 0:19:30]} Bb6 {[%emt 0:01:30]} 13. Bc2 {[%emt 0:11:30]} a5 {[%emt 0:10:30]} 14. h3 {[%emt 0:06:30]} a4 {[%emt 0:01:30]} 15. a3 {[%emt 0:01:30]} Nd7 {[%emt 0:18:30]} 16. Ng3 {[%emt 0:17:30]} Nc5 {[%emt 0:03:30]} 17. cxd4 {[%emt 0:07:29]} Ne6 {[%emt 0:09:30]} 18. Nf5 {[%emt 0:04:44]} Nexd4 {[%emt 0:00:30]} 19. N5xd4 {[%emt 0:01:38]} Nxd4 {[%emt 0:00:30]} 20. Nxd4 {[%emt 0:00:37]} Bxd4 {[%emt 0:00:30]} 21. Rb1 {[%emt 0:00:35]} Re6 {[%emt 0:04:30]} 22. Be3 {[%emt 0:02:24]} Rg6 {[%emt 0:00:30]} 23. Kh2 {[%emt 0:01:40]} Qh4 {[%emt 0:02:30]} 24. Bxd4 {[%emt 0:03:25]} Bg4 {[%emt 0:04:30]} 25. f3 {[%emt 0:01:15]} Bxh3 {[%emt 0:00:30]} 26. Bf2 {[%emt 0:01:00]} Rxg2+ {[%emt 0:00:00]} 27. Kh1 {[%emt 0:00:17]} Rxf2 {[%emt 0:00:00]} 0-1

[Event "World Junior U20 Girls 2018"]
[Site "Gebze"]
[Date "2018.09.06"]
[Round "2"]
[White "Yang, Yijing"]
[Black "Bail, Ellen Larissa"]
[Result "1-0"]
[ECO "E06"]
[WhiteElo "2018"]
[BlackElo "1832"]
[Annotator "NA"]
[PlyCount "120"]
[EventDate "2018.09.05"]
[EventType "swiss"]
[EventCountry "TUR"]
[SourceTitle "playchess.com"]
[Source "ChessBase"]
[SourceQuality "1"]
[TimeControl "40/5400+30:1800+30"]

1. d4 {[%emt 0:00:30]} d5 {[%emt 0:00:30]} 2. c4 {[%emt 0:00:30]} e6 {[%emt 0:00:00]} 3. Nf3 {[%emt 0:00:00]} Nf6 {[%emt 0:00:00]} 4. g3 {[%emt 0:00:00]} Be7 {[%emt 0:00:30]} 5. Bg2 {[%emt 0:00:00]} O-O {[%emt 0:01:30]} 6. O-O {[%emt 0:00:00]} c5 {[%emt 0:03:30]} 7. cxd5 {[%emt 0:02:30]} Nxd5 {[%emt 0:04:30]} 8. e4 {[%emt 0:04:30]} Nf6 {[%emt 0:03:30]} 9. e5 {[%emt 0:04:30]} Nfd7 {[%emt 0:07:30]} 10. Nc3 {[%emt 0:02:30]} Nc6 {[%emt 0:02:30]} 11. Be3 {[%emt 0:09:30]} cxd4 {[%emt 0:12:30]} 12. Bxd4 {[%emt 0:00:30]} Rb8 {[%emt 0:05:30]} 13. Qe2 {[%emt 0:06:30]} Qa5 {[%emt 0:13:30]} 14. Rfe1 {[%emt 0:05:30]} b5 {[%emt 0:03:30]} 15. Qe4 {[%emt 0:13:30]} Bb7 {[%emt 0:03:30]} 16. Qf4 {[%emt 0:01:30]} Nb4 {[%emt 0:05:30]} 17. Re2 {[%emt 0:11:30]} Rbc8 {[%emt 0:07:30]} 18. a3 {[%emt 0:06:30]} Nd5 {[%emt 0:00:30]} 19. Nxd5 {[%emt 0:01:30]} Bxd5 {[%emt 0:00:30]} 20. b4 {[%emt 0:03:30]} Qa4 {[%emt 0:06:19]} 21. Qe3 {[%emt 0:02:30]} Rc7 {[%emt 0:00:48]} 22. Nd2 {[%emt 0:00:30]} Bxg2 {[%emt 0:02:40]} 23. Kxg2 {[%emt 0:00:30]} Rfc8 {[%emt 0:05:33]} 24. Nb3 {[%emt 0:01:30]} Qa6 {[%emt 0:00:54]} 25. Ree1 {[%emt 0:04:21]} Qb7+ {[%emt 0:01:52]} 26. Qf3 {[%emt 0:01:11]} Qxf3+ {[%emt 0:02:06]} 27. Kxf3 {[%emt 0:00:30]} a6 {[%emt 0:00:06]} 28. Ke4 {[%emt 0:03:02]} Kf8 {[%emt 0:00:53]} 29. Ra2 {[%emt 0:03:32]} Rc4 {[%emt 0:00:47]} 30. f4 {[%emt 0:04:20]} Ke8 {[%emt 0:02:17]} 31. g4 {[%emt 0:01:44]} f6 {[%emt 0:00:43]} 32. Kd3 {[%emt 0:01:05]} fxe5 {[%emt 0:00:46]} 33. fxe5 {[%emt 0:00:05]} Nf8 {[%emt 0:03:31]} 34. Rf1 {[%emt 0:03:11]} Ng6 {[%emt 0:00:15]} 35. Raf2 {[%emt 0:00:04]} Rd8 {[%emt 0:00:08]} 36. Ke4 {[%emt 0:00:45]} a5 {[%emt 0:01:17]} 37. bxa5 {[%emt 0:01:33]} Bxa3 {[%emt 0:00:06]} 38. a6 {[%emt 0:01:34]} Bc5 {[%emt 0:00:49]} 39. Rd2 {[%emt 0:00:41]} Bxd4 {[%emt 0:00:41]} 40. Rxd4 {[%emt 0:00:00]} Rdxd4+ {[%emt 0:00:44]} 41. Nxd4 {[%emt 0:00:52]} Ra4 {[%emt 0:02:45]} 42. Rb1 {[%emt 0:00:30]} Rxa6 {[%emt 0:01:30]} 43. Rxb5 {[%emt 0:01:30]} Kf7 {[%emt 0:04:30]} 44. Rb7+ {[%emt 0:00:30]} Kf8 {[%emt 0:01:30]} 45. Rd7 {[%emt 0:01:30]} Ra5 {[%emt 0:02:30]} 46. Nxe6+ {[%emt 0:00:30]} Ke8 {[%emt 0:00:30]} 47. Rd5 {[%emt 0:00:30]} Ra4+ {[%emt 0:00:30]} 48. Rd4 {[%emt 0:04:30]} Ra5 {[%emt 0:01:34]} 49. Nc7+ {[%emt 0:04:30]} Ke7 {[%emt 0:00:30]} 50. Nd5+ {[%emt 0:00:30]} Ke6 {[%emt 0:00:30]} 51. Rb4 {[%emt 0:00:30]} Nxe5 {[%emt 0:04:30]} 52. Rb6+ {[%emt 0:00:30]} Nc6 {[%emt 0:00:30]} 53. Rxc6+ {[%emt 0:00:00]} Kf7 {[%emt 0:00:19]} 54. Rc7+ {[%emt 0:00:00]} Kg6 {[%emt 0:01:49]} 55. Nf4+ {[%emt 0:01:30]} Kh6 {[%emt 0:00:11]} 56. h4 {[%emt 0:01:30]} Ra4+ {[%emt 0:00:14]} 57. Ke3 {[%emt 0:00:30]} Ra3+ {[%emt 0:00:21]} 58. Kd2 {[%emt 0:00:30]} g5 {[%emt 0:02:35]} 59. Rc6+ {[%emt 0:00:30]} Kg7 {[%emt 0:00:00]} 60. Ne6+ {[%emt 0:00:30]} Kg8 {[%emt 0:00:13]} 1-0

[Event "World Junior U20 Girls 2018"]
[Site "Gebze"]
[Date "2018.09.06"]
[Round "2"]
[White "Isha Sharma"]
[Black "Kanakova, Natalie"]
[Result "0-1"]
[ECO "C55"]
[WhiteElo "2012"]
[BlackElo "2201"]
[Annotator "NA"]
[PlyCount "160"]
[EventDate "2018.09.05"]
[EventType "swiss"]
[EventCountry "TUR"]
[SourceTitle "playchess.com"]
[Source "ChessBase"]
[SourceQuality "1"]
[TimeControl "40/5400+30:1800+30"]

1. e4 {[%emt 0:00:30]} e5 {[%emt 0:00:30]} 2. Nf3 {[%emt 0:00:30]} Nc6 {[%emt 0:00:30]} 3. Bc4 {[%emt 0:00:00]} Nf6 {[%emt 0:00:00]} 4. d3 {[%emt 0:00:00]} Be7 {[%emt 0:01:00]} 5. O-O {[%emt 0:00:00]} O-O {[%emt 0:00:30]} 6. Re1 {[%emt 0:00:00]} d6 {[%emt 0:00:30]} 7. h3 {[%emt 0:00:00]} Kh8 {[%emt 0:01:30]} 8. c3 {[%emt 0:01:00]} Ng8 {[%emt 0:03:30]} 9. d4 {[%emt 0:04:30]} f5 {[%emt 0:04:30]} 10. dxe5 {[%emt 0:05:30]} fxe4 {[%emt 0:01:30]} 11. Rxe4 {[%emt 0:01:30]} Rxf3 {[%emt 0:05:30]} 12. gxf3 {[%emt 0:12:30]} Bf5 {[%emt 0:07:30]} 13. Re1 {[%emt 0:00:30]} Nxe5 {[%emt 0:04:30]} 14. Bf1 {[%emt 0:00:30]} Qe8 {[%emt 0:01:30]} 15. Bf4 {[%emt 0:06:30]} Qg6+ $11 {[%emt 0:05:30]} (15... Bc2 $5 16. Qe2 Nd3 $11) 16. Bg3 {[%emt 0:01:30]} Rf8 {[%emt 0:08:30]} 17. Na3 {[%emt 0:18:30]} Qh5 {[%emt 0:11:30]} 18. Rxe5 {[%emt 0:08:30]} dxe5 {[%emt 0:00:30]} 19. Kh2 {[%emt 0:02:30]} Nh6 {[%emt 0:11:30]} 20. Nc4 {[%emt 0:02:30]} e4 {[%emt 0:07:30]} 21. fxe4 {[%emt 0:02:30]} Bg4 {[%emt 0:00:30]} 22. Qd5 {[%emt 0:00:30]} Bg5 {[%emt 0:10:00]} 23. Kg1 {[%emt 0:04:30]} Bf3 {[%emt 0:02:42]} 24. Ne5 {[%emt 0:01:30]} Be2 {[%emt 0:09:11]} 25. Bxe2 {[%emt 0:01:30]} Qxe2 {[%emt 0:00:01]} 26. Nd7 {[%emt 0:00:30]} Rd8 {[%emt 0:00:54]} 27. Bxc7 {[%emt 0:01:30]} Bh4 {[%emt 0:00:30]} 28. Rf1 {[%emt 0:00:30]} Re8 {[%emt 0:00:19]} 29. Nc5 {[%emt 0:02:30]} Rf8 {[%emt 0:01:27]} 30. Qd4 {[%emt 0:00:30]} Qh5 {[%emt 0:00:54]} 31. Be5 {[%emt 0:01:30]} Qg5+ {[%emt 0:00:22]} 32. Kh2 {[%emt 0:01:30]} Bxf2 {[%emt 0:00:35]} 33. Bxg7+ {[%emt 0:00:47]} Kg8 {[%emt 0:00:00]} 34. Qc4+ {[%emt 0:01:00]} Rf7 {[%emt 0:00:37]} 35. Rxf2 {[%emt 0:00:09]} Ng4+ {[%emt 0:00:00]} 36. hxg4 {[%emt 0:03:33]} Qh4+ {[%emt 0:00:00]} 37. Kg2 {[%emt 0:00:00]} Qxf2+ {[%emt 0:00:29]} 38. Kh3 {[%emt 0:00:00]} Qf3+ {[%emt 0:01:01]} 39. Kh4 {[%emt 0:00:06]} Kxg7 {[%emt 0:00:25]} 40. Qd4+ {[%emt 0:00:00]} Kg6 {[%emt 0:00:00]} 41. Qd6+ {[%emt 0:04:55]} Rf6 {[%emt 0:05:33]} 42. Qg3 {[%emt 0:00:30]} Qh1+ {[%emt 0:00:30]} 43. Qh3 {[%emt 0:00:30]} Qe1+ {[%emt 0:00:30]} 44. Qg3 {[%emt 0:00:00]} Qc1 {[%emt 0:02:30]} 45. Qd3 {[%emt 0:02:00]} Qh6+ {[%emt 0:04:30]} 46. Kg3 {[%emt 0:00:00]} Qf4+ {[%emt 0:00:30]} 47. Kh3 {[%emt 0:00:00]} Kh6 {[%emt 0:04:28]} 48. e5 {[%emt 0:03:30]} Rg6 {[%emt 0:09:22]} 49. Qg3 {[%emt 0:00:30]} Qf1+ {[%emt 0:01:00]} 50. Qg2 {[%emt 0:03:30]} Qxg2+ {[%emt 0:00:20]} 51. Kxg2 {[%emt 0:00:00]} Rxg4+ {[%emt 0:00:30]} 52. Kf3 {[%emt 0:00:00]} Rg7 {[%emt 0:00:00]} 53. a4 {[%emt 0:02:30]} Kg6 {[%emt 0:00:29]} 54. Kf4 {[%emt 0:01:30]} Rc7 {[%emt 0:01:48]} 55. b4 {[%emt 0:01:30]} b6 {[%emt 0:01:29]} 56. Ne4 {[%emt 0:00:30]} Rf7+ {[%emt 0:02:30]} 57. Ke3 {[%emt 0:00:30]} h5 {[%emt 0:00:53]} 58. Nd6 {[%emt 0:03:30]} Rc7 {[%emt 0:01:06]} 59. c4 {[%emt 0:00:00]} Kg5 {[%emt 0:01:06]} 60. Kf3 {[%emt 0:00:00]} Re7 {[%emt 0:00:22]} 61. c5 {[%emt 0:02:30]} bxc5 {[%emt 0:01:17]} 62. bxc5 {[%emt 0:00:30]} h4 {[%emt 0:00:01]} 63. c6 {[%emt 0:02:30]} a6 {[%emt 0:01:36]} 64. e6 {[%emt 0:00:00]} h3 {[%emt 0:00:30]} 65. Kg3 {[%emt 0:00:00]} h2 {[%emt 0:00:30]} 66. Kxh2 {[%emt 0:00:30]} Kf4 {[%emt 0:00:00]} 67. Nc8 {[%emt 0:23:24]} Rc7 {[%emt 0:00:28]} 68. Nb6 {[%emt 0:00:00]} Ke5 {[%emt 0:02:01]} 69. Nd7+ {[%emt 0:00:09]} Kd6 {[%emt 0:00:03]} 70. Nb8 {[%emt 0:05:50]} a5 {[%emt 0:00:04]} 71. Kg3 {[%emt 0:00:29]} Kxe6 {[%emt 0:00:38]} 72. Kf3 {[%emt 0:00:05]} Kd5 {[%emt 0:00:11]} 73. Ke3 {[%emt 0:01:21]} Rc8 {[%emt 0:00:09]} 74. Nd7 {[%emt 0:00:51]} Kxc6 {[%emt 0:00:15]} 75. Nf6 {[%emt 0:01:23]} Kc5 {[%emt 0:00:58]} 76. Kd3 {[%emt 0:00:05]} Kb4 {[%emt 0:00:19]} 77. Nd5+ {[%emt 0:00:07]} Kb3 {[%emt 0:00:00]} 78. Ke3 {[%emt 0:00:48]} Rc6 {[%emt 0:00:27]} 79. Kd4 {[%emt 0:01:26]} Kxa4 {[%emt 0:00:12]} 80. Ne7 {[%emt 0:00:12]} Rc1 {[%emt 0:00:22]} 0-1

[Event "World Junior U20 Girls 2018"]
[Site "Gebze"]
[Date "2018.09.06"]
[Round "2"]
[White "Cramling Bellon, Anna"]
[Black "Caxita, Esperanca"]
[Result "1-0"]
[ECO "E34"]
[WhiteElo "2009"]
[BlackElo "1803"]
[Annotator "NA"]
[PlyCount "53"]
[EventDate "2018.09.05"]
[EventType "swiss"]
[EventCountry "TUR"]
[SourceTitle "playchess.com"]
[Source "ChessBase"]
[SourceQuality "1"]
[TimeControl "40/5400+30:1800+30"]

1. d4 {[%emt 0:00:30]} Nf6 {[%emt 0:00:30]} 2. c4 {[%emt 0:00:30]} e6 {[%emt 0:00:00]} 3. Nc3 {[%emt 0:00:30]} Bb4 {[%emt 0:00:00]} 4. Qc2 {[%emt 0:01:30]} d5 {[%emt 0:02:30]} 5. cxd5 {[%emt 0:03:30]} Nxd5 {[%emt 0:03:30]} 6. e4 {[%emt 0:09:30]} Nxc3 {[%emt 0:09:30]} 7. bxc3 {[%emt 0:00:30]} Ba5 {[%emt 0:01:30]} 8. Nf3 {[%emt 0:05:30]} c5 {[%emt 0:03:30]} 9. Bd2 {[%emt 0:10:30]} cxd4 {[%emt 0:04:30]} 10. cxd4 {[%emt 0:00:30]} Nc6 {[%emt 0:00:30]} 11. Bb5 {[%emt 0:04:30]} Bd7 {[%emt 0:03:30]} 12. O-O {[%emt 0:01:30]} Bxd2 {[%emt 0:01:30]} 13. Qxd2 {[%emt 0:01:30]} O-O {[%emt 0:00:30]} 14. Rfd1 {[%emt 0:09:30]} Ne7 {[%emt 0:03:30]} 15. Bxd7 {[%emt 0:05:30]} Qxd7 {[%emt 0:00:00]} 16. Ne5 {[%emt 0:00:30]} Qa4 {[%emt 0:01:00]} 17. Rab1 {[%emt 0:04:30]} b6 {[%emt 0:02:30]} 18. Rb4 {[%emt 0:05:30]} Qa6 {[%emt 0:01:30]} 19. d5 {[%emt 0:01:30]} exd5 {[%emt 0:08:30]} 20. exd5 {[%emt 0:00:30]} Rfd8 {[%emt 0:00:30]} 21. d6 {[%emt 0:04:30]} Rac8 {[%emt 0:04:30]} 22. h3 {[%emt 0:07:30]} Qb7 {[%emt 0:05:30]} 23. Rg4 {[%emt 0:07:30]} f6 {[%emt 0:05:30]} 24. d7 {[%emt 0:03:56]} Rc5 {[%emt 0:04:30]} 25. Qd6 {[%emt 0:03:32]} Rxe5 {[%emt 0:14:02]} 26. Qxf6 {[%emt 0:00:45]} Ng6 {[%emt 0:00:17]} 27. Qxd8+ {[%emt 0:01:37]} 1-0

[Event "World Junior U20 Girls 2018"]
[Site "Gebze"]
[Date "2018.09.06"]
[Round "2"]
[White "Stanciu, Ioana-Georgiana"]
[Black "Anacoglu, Cisel"]
[Result "1-0"]
[ECO "C45"]
[WhiteElo "2000"]
[BlackElo "1791"]
[Annotator "NA"]
[PlyCount "69"]
[EventDate "2018.09.05"]
[EventType "swiss"]
[EventCountry "TUR"]
[SourceTitle "playchess.com"]
[Source "ChessBase"]
[SourceQuality "1"]
[TimeControl "40/5400+30:1800+30"]

1. e4 {[%emt 0:01:30]} e5 {[%emt 0:00:30]} 2. Nf3 {[%emt 0:00:30]} Nc6 {[%emt 0:00:30]} 3. d4 {[%emt 0:00:00]} exd4 {[%emt 0:00:00]} 4. Nxd4 {[%emt 0:00:00]} Nf6 {[%emt 0:00:00]} 5. Nxc6 {[%emt 0:00:30]} bxc6 {[%emt 0:00:00]} 6. e5 {[%emt 0:00:30]} Nd5 {[%emt 0:00:00]} 7. c4 {[%emt 0:00:00]} Ne7 {[%emt 0:00:00]} 8. Bd3 {[%emt 0:01:00]} Ng6 {[%emt 0:00:00]} 9. O-O {[%emt 0:01:30]} Be7 {[%emt 0:00:00]} 10. f4 {[%emt 0:01:30]} O-O {[%emt 0:00:00]} 11. Nc3 {[%emt 0:02:30]} d6 {[%emt 0:00:30]} 12. exd6 {[%emt 0:05:30]} Bxd6 {[%emt 0:00:30]} 13. Ne4 {[%emt 0:05:30]} Be7 {[%emt 0:12:30]} 14. Be3 {[%emt 0:02:30]} Bf5 {[%emt 0:08:30]} 15. Qc2 {[%emt 0:02:30]} Qd7 {[%emt 0:03:30]} 16. Nf6+ {[%emt 0:05:30]} Bxf6 {[%emt 0:00:30]} 17. Bxf5 {[%emt 0:00:00]} Qe7 {[%emt 0:02:30]} 18. Rae1 {[%emt 0:01:00]} Qb4 {[%emt 0:03:30]} 19. b3 {[%emt 0:03:30]} Rfe8 {[%emt 0:04:30]} 20. Qf2 {[%emt 0:10:30]} Qa5 {[%emt 0:11:30]} 21. Bd7 {[%emt 0:01:30]} Re7 {[%emt 0:02:30]} 22. Bxc6 {[%emt 0:00:30]} Rd8 {[%emt 0:00:30]} 23. Rd1 {[%emt 0:01:30]} Rxd1 {[%emt 0:03:30]} 24. Rxd1 {[%emt 0:00:30]} Qc3 {[%emt 0:08:30]} 25. Bxa7 {[%emt 0:05:30]} Re6 {[%emt 0:03:30]} 26. Bb7 {[%emt 0:05:30]} Rd6 {[%emt 0:01:30]} 27. Rxd6 {[%emt 0:04:30]} cxd6 {[%emt 0:00:30]} 28. g3 {[%emt 0:00:00]} Qa1+ {[%emt 0:01:30]} 29. Kg2 {[%emt 0:00:00]} Bb2 {[%emt 0:01:30]} 30. a4 {[%emt 0:01:30]} Qa3 {[%emt 0:00:30]} 31. Qe3 {[%emt 0:01:30]} Bc1 {[%emt 0:01:30]} 32. Qe8+ {[%emt 0:01:30]} Nf8 {[%emt 0:00:30]} 33. Bd5 {[%emt 0:01:30]} Qb2+ {[%emt 0:00:30]} 34. Bf2 {[%emt 0:00:30]} Qf6 {[%emt 0:00:30]} 35. a5 {[%emt 0:00:00]} 1-0

[Event "World Junior U20 Girls 2018"]
[Site "Gebze"]
[Date "2018.09.06"]
[Round "2"]
[White "Nastase, Andreea-Cristina"]
[Black "Huttl, Sofie"]
[Result "1-0"]
[ECO "D36"]
[WhiteElo "1983"]
[BlackElo "1727"]
[Annotator "NA"]
[PlyCount "65"]
[EventDate "2018.09.05"]
[EventType "swiss"]
[EventCountry "TUR"]
[SourceTitle "playchess.com"]
[Source "ChessBase"]
[SourceQuality "1"]
[TimeControl "40/5400+30:1800+30"]

1. d4 {[%emt 0:01:30]} d5 {[%emt 0:00:30]} 2. c4 {[%emt 0:00:30]} e6 {[%emt 0:00:30]} 3. Nc3 {[%emt 0:00:00]} Be7 {[%emt 0:00:00]} 4. Nf3 {[%emt 0:00:00]} Nf6 {[%emt 0:00:00]} 5. cxd5 {[%emt 0:00:00]} exd5 {[%emt 0:00:30]} 6. Bg5 {[%emt 0:00:00]} h6 {[%emt 0:00:30]} 7. Bh4 {[%emt 0:01:30]} c6 {[%emt 0:02:30]} 8. Qc2 {[%emt 0:00:30]} O-O {[%emt 0:01:30]} 9. e3 {[%emt 0:00:30]} Re8 {[%emt 0:05:30]} 10. Bd3 {[%emt 0:01:30]} Nbd7 {[%emt 0:07:30]} 11. O-O {[%emt 0:01:30]} Ne4 {[%emt 0:06:30]} 12. Bxe7 {[%emt 0:00:30]} Qxe7 {[%emt 0:00:30]} 13. Rab1 {[%emt 0:00:30]} Nb6 {[%emt 0:07:30]} 14. b4 {[%emt 0:02:30]} a6 {[%emt 0:02:30]} 15. Bxe4 {[%emt 0:02:30]} dxe4 {[%emt 0:00:30]} 16. Nd2 {[%emt 0:00:00]} f5 {[%emt 0:02:30]} 17. a4 {[%emt 0:00:00]} Be6 {[%emt 0:02:30]} 18. Ne2 {[%emt 0:04:30]} Rec8 {[%emt 0:08:30]} 19. Qc5 {[%emt 0:05:30]} Qc7 {[%emt 0:05:30]} 20. Nf4 {[%emt 0:01:30]} Kf7 {[%emt 0:06:30]} 21. Nxe6 {[%emt 0:06:30]} Kxe6 {[%emt 0:00:30]} 22. f3 {[%emt 0:01:30]} exf3 {[%emt 0:03:30]} 23. Rxf3 {[%emt 0:01:30]} g6 {[%emt 0:09:30]} 24. e4 {[%emt 0:00:30]} f4 {[%emt 0:00:30]} 25. d5+ {[%emt 0:04:30]} cxd5 {[%emt 0:02:30]} 26. exd5+ {[%emt 0:00:00]} Nxd5 {[%emt 0:00:30]} 27. Re1+ {[%emt 0:00:00]} Ne3 {[%emt 0:00:30]} 28. Qxc7 {[%emt 0:00:30]} Rxc7 {[%emt 0:00:30]} 29. Rxf4 {[%emt 0:00:00]} Rc2 {[%emt 0:06:16]} 30. Rxe3+ {[%emt 0:00:00]} Kd7 {[%emt 0:00:00]} 31. Rd4+ {[%emt 0:00:30]} Kc7 {[%emt 0:00:25]} 32. Re7+ {[%emt 0:00:30]} Kb6 {[%emt 0:00:27]} 33. h3 {[%emt 0:01:30]} 1-0